[Event "Late-Titled-Tuesday-Blitz-May-28-2024"]
[Site "Chess.com"]
[Date "2024.05.28"]
[Round "7"]
[White "HajiyevKanan"]
[Black "norwaytoadog"]
[Result "1-0"]
[WhiteElo "2473"]
[BlackElo "2317"]
[TimeControl "180+1"]
[EndTime "15:16:36 PDT"]
[Termination "HajiyevKanan won on time"]

1. d4 {[%clk 0:03:00.9]} 1... Nf6 {[%clk 0:02:59.6]} 2. Nf3 {[%clk 0:03:01.8]}
2... e6 {[%clk 0:02:59.9]} 3. e3 {[%clk 0:03:02.7]} 3... d5 {[%clk 0:02:59.4]}
4. Be2 {[%clk 0:03:03.6]} 4... c5 {[%clk 0:02:59.2]} 5. O-O {[%clk 0:03:04.5]}
5... Nc6 {[%clk 0:02:59.6]} 6. b3 {[%clk 0:03:05.4]} 6... Be7 {[%clk 0:02:58.6]}
7. Bb2 {[%clk 0:03:06.3]} 7... O-O {[%clk 0:02:58.4]} 8. c4 {[%clk 0:03:07.2]}
8... a6 {[%clk 0:02:53.1]} 9. dxc5 {[%clk 0:03:07]} 9... Bxc5 {[%clk 0:02:52.8]}
10. Nc3 {[%clk 0:03:07.9]} 10... dxc4 {[%clk 0:02:31.9]} 11. bxc4 {[%clk
0:03:08.8]} 11... Qe7 {[%clk 0:02:29.5]} 12. Rb1 {[%clk 0:03:03.9]} 12... Rd8
{[%clk 0:02:24.3]} 13. Qc2 {[%clk 0:03:04]} 13... e5 {[%clk 0:02:12.5]} 14. Rfd1
{[%clk 0:02:59.5]} 14... Bg4 {[%clk 0:02:12]} 15. h3 {[%clk 0:02:50.7]} 15...
Bh5 {[%clk 0:02:09.5]} 16. Nd5 {[%clk 0:02:46.4]} 16... Nxd5 {[%clk 0:02:02.2]}
17. cxd5 {[%clk 0:02:47.3]} 17... Nb4 {[%clk 0:02:01.2]} 18. Qb3 {[%clk
0:02:33.7]} 18... Bg6 {[%clk 0:01:39.5]} 19. Rbc1 {[%clk 0:02:28.2]} 19... a5
{[%clk 0:01:17.3]} 20. Nxe5 {[%clk 0:02:22.2]} 20... Bd6 {[%clk 0:01:02.1]} 21.
Nc4 {[%clk 0:02:02.2]} 21... Na6 {[%clk 0:00:54.5]} 22. Nxd6 {[%clk 0:01:57.9]}
22... Qxd6 {[%clk 0:00:49.8]} 23. Qc3 {[%clk 0:01:41.3]} 23... f6 {[%clk
0:00:48]} 24. Qxa5 {[%clk 0:01:39.6]} 24... Nb4 {[%clk 0:00:36.9]} 25. Qc7
{[%clk 0:01:18.3]} 25... Rxa2 {[%clk 0:00:31]} 26. Qxd6 {[%clk 0:01:14]} 26...
Rxd6 {[%clk 0:00:30.7]} 27. Rc8+ {[%clk 0:01:07.6]} 27... Kf7 {[%clk 0:00:30.1]}
28. Bc3 {[%clk 0:01:05.3]} 28... Nxd5 {[%clk 0:00:12.7]} 29. Bc4 {[%clk
0:01:05.1]} 29... Ke6 {[%clk 0:00:06.6]} 30. Bxa2 {[%clk 0:00:59.9]} 1-0

[Event "Late-Titled-Tuesday-Blitz-May-28-2024"]
[Site "Chess.com"]
[Date "2024.05.28"]
[Round "7"]
[White "OIAM03"]
[Black "probablybad04"]
[Result "0-1"]
[WhiteElo "2021"]
[BlackElo "2434"]
[TimeControl "180+1"]
[EndTime "15:16:36 PDT"]
[Termination "probablybad04 won on time"]

1. e4 {[%clk 0:02:56.6]} 1... g6 {[%clk 0:02:59.5]} 2. d4 {[%clk 0:02:55.3]}
2... Bg7 {[%clk 0:02:59.7]} 3. c4 {[%clk 0:02:52.7]} 3... c5 {[%clk 0:02:59.5]}
4. Nf3 {[%clk 0:02:50.3]} 4... cxd4 {[%clk 0:02:59]} 5. Nxd4 {[%clk 0:02:50.1]}
5... Nc6 {[%clk 0:02:59.9]} 6. Be3 {[%clk 0:02:49.4]} 6... d6 {[%clk 0:03:00.1]}
7. Nc3 {[%clk 0:02:48.5]} 7... Nf6 {[%clk 0:02:58.9]} 8. Be2 {[%clk 0:02:46.3]}
8... O-O {[%clk 0:02:58.1]} 9. O-O {[%clk 0:02:46.3]} 9... Bd7 {[%clk
0:02:58.3]} 10. Nc2 {[%clk 0:02:46]} 10... a6 {[%clk 0:02:57.4]} 11. Rc1 {[%clk
0:02:44.5]} 11... Rb8 {[%clk 0:02:57]} 12. b3 {[%clk 0:02:41.8]} 12... b5 {[%clk
0:02:56.7]} 13. cxb5 {[%clk 0:02:38.7]} 13... axb5 {[%clk 0:02:57.1]} 14. Nxb5
{[%clk 0:02:37.9]} 14... Nxe4 {[%clk 0:02:55]} 15. Ncd4 {[%clk 0:02:26.5]} 15...
Nxd4 {[%clk 0:02:53.2]} 16. Nxd4 {[%clk 0:02:22.1]} 16... Qa5 {[%clk 0:02:52.6]}
17. Qd3 {[%clk 0:02:01.8]} 17... Nc5 {[%clk 0:02:48.8]} 18. Qc2 {[%clk
0:01:05.6]} 18... e5 {[%clk 0:02:43.9]} 19. Nf3 {[%clk 0:00:57.7]} 19... Bf5
{[%clk 0:02:42.3]} 20. Qd2 {[%clk 0:00:50.6]} 20... Qa3 {[%clk 0:02:32.2]} 21.
Bxc5 {[%clk 0:00:47.4]} 21... dxc5 {[%clk 0:02:25.9]} 22. Bc4 {[%clk 0:00:18.5]}
22... Rfd8 {[%clk 0:02:18.9]} 23. Qe2 {[%clk 0:00:17.9]} 23... Ra8 {[%clk
0:02:11.3]} 24. Nxe5 {[%clk 0:00:17.5]} 24... Rf8 {[%clk 0:01:57.7]} 25. Bxf7+
{[%clk 0:00:10.6]} 25... Rxf7 {[%clk 0:01:57.2]} 26. Nxf7 {[%clk 0:00:10.8]}
26... Kxf7 {[%clk 0:01:53.3]} 27. Rfe1 {[%clk 0:00:10.9]} 27... Bf6 {[%clk
0:01:49.7]} 28. Qc4+ {[%clk 0:00:10.3]} 28... Kg7 {[%clk 0:01:49.4]} 29. Qxc5
{[%clk 0:00:09.4]} 29... Qxc5 {[%clk 0:01:47.7]} 30. Rxc5 {[%clk 0:00:09.6]}
30... Rxa2 {[%clk 0:01:47.7]} 31. Rc7+ {[%clk 0:00:09.7]} 31... Kh6 {[%clk
0:01:47.4]} 32. g3 {[%clk 0:00:09.3]} 32... Bd4 {[%clk 0:01:46.9]} 33. Rf1
{[%clk 0:00:06]} 33... Bh3 {[%clk 0:01:46.4]} 34. b4 {[%clk 0:00:05]} 34... Bxf1
{[%clk 0:01:45.9]} 35. Kxf1 {[%clk 0:00:05.3]} 35... Rxf2+ {[%clk 0:01:46]} 36.
Ke1 {[%clk 0:00:05.8]} 36... Rxh2 {[%clk 0:01:46]} 37. b5 {[%clk 0:00:06.1]}
37... Rb2 {[%clk 0:01:45.2]} 38. Rd7 {[%clk 0:00:05]} 38... Be5 {[%clk
0:01:45.2]} 39. Rd5 {[%clk 0:00:03.6]} 39... Bxg3+ {[%clk 0:01:45.1]} 40. Kf1
{[%clk 0:00:03.8]} 40... Bf4 {[%clk 0:01:41.3]} 0-1

[Event "Late-Titled-Tuesday-Blitz-May-28-2024"]
[Site "Chess.com"]
[Date "2024.05.28"]
[Round "7"]
[White "jup1978"]
[Black "Ramosha"]
[Result "0-1"]
[WhiteElo "2435"]
[BlackElo "2571"]
[TimeControl "180+1"]
[EndTime "15:16:39 PDT"]
[Termination "Ramosha won by resignation"]

1. e4 {[%clk 0:03:00.9]} 1... c6 {[%clk 0:02:59.1]} 2. d4 {[%clk 0:02:58.9]}
2... d5 {[%clk 0:02:59.6]} 3. e5 {[%clk 0:02:59.2]} 3... Bf5 {[%clk 0:02:59.5]}
4. Bd3 {[%clk 0:02:57.7]} 4... Bxd3 {[%clk 0:02:59.4]} 5. Qxd3 {[%clk
0:02:58.2]} 5... e6 {[%clk 0:02:59.9]} 6. c3 {[%clk 0:02:58.5]} 6... c5 {[%clk
0:03:00.1]} 7. Ne2 {[%clk 0:02:58.9]} 7... Nc6 {[%clk 0:03:00.5]} 8. O-O {[%clk
0:02:57.3]} 8... Qb6 {[%clk 0:03:00.6]} 9. a3 {[%clk 0:02:54.1]} 9... cxd4
{[%clk 0:03:00.4]} 10. cxd4 {[%clk 0:02:54.1]} 10... Nge7 {[%clk 0:03:00.7]} 11.
b4 {[%clk 0:02:42.8]} 11... Nf5 {[%clk 0:03:00.8]} 12. Bb2 {[%clk 0:02:41.8]}
12... Be7 {[%clk 0:03:00.3]} 13. Nd2 {[%clk 0:02:41.1]} 13... f6 {[%clk
0:03:00.5]} 14. g4 {[%clk 0:02:16.5]} 14... Nh4 {[%clk 0:02:56.6]} 15. exf6
{[%clk 0:01:48.7]} 15... Bxf6 {[%clk 0:02:57.5]} 16. Qg3 {[%clk 0:01:47.1]}
16... Ng6 {[%clk 0:02:54.5]} 17. g5 {[%clk 0:01:26.5]} 17... Be7 {[%clk
0:02:53.7]} 18. h4 {[%clk 0:01:27]} 18... h5 {[%clk 0:02:43.7]} 19. Nf4 {[%clk
0:01:11.1]} 19... Bd6 {[%clk 0:02:18.5]} 20. Nxd5 {[%clk 0:01:10]} 20... Qd8
{[%clk 0:02:10.9]} 21. Qe3 {[%clk 0:01:04.1]} 21... Bh2+ {[%clk 0:02:09.6]} 22.
Kxh2 {[%clk 0:01:01.7]} 22... Qxd5 {[%clk 0:02:10.5]} 23. Qe4 {[%clk 0:00:57.5]}
23... Qxe4 {[%clk 0:02:05.3]} 24. Nxe4 {[%clk 0:00:58.4]} 24... O-O {[%clk
0:02:05.2]} 25. Kg3 {[%clk 0:00:49.1]} 25... Rf4 {[%clk 0:02:02.2]} 26. f3
{[%clk 0:00:49.5]} 26... Raf8 {[%clk 0:02:02.2]} 27. Nc5 {[%clk 0:00:47.7]}
27... Rxh4 {[%clk 0:01:53.8]} 28. Nxe6 {[%clk 0:00:40.8]} 28... Rf5 {[%clk
0:01:53.8]} 29. Rad1 {[%clk 0:00:34.8]} 29... Nce7 {[%clk 0:01:53]} 30. Rfe1
{[%clk 0:00:25.9]} 30... Nd5 {[%clk 0:01:52.2]} 31. Nc5 {[%clk 0:00:24.3]} 31...
Rxg5+ {[%clk 0:01:52]} 32. Kf2 {[%clk 0:00:20.7]} 32... Ngf4 {[%clk 0:01:52.4]}
33. Rg1 {[%clk 0:00:09.2]} 33... Rh2+ {[%clk 0:01:52.1]} 34. Kf1 {[%clk
0:00:08.7]} 34... Rxg1+ {[%clk 0:01:51.6]} 35. Kxg1 {[%clk 0:00:07.4]} 35...
Rxb2 {[%clk 0:01:52.5]} 36. Nxb7 {[%clk 0:00:07.3]} 36... Rb3 {[%clk 0:01:52.7]}
37. Rc1 {[%clk 0:00:04]} 37... Rxa3 {[%clk 0:01:52.2]} 38. Nd6 {[%clk
0:00:04.3]} 38... Rxf3 {[%clk 0:01:51.9]} 39. Rc8+ {[%clk 0:00:04.1]} 39... Kh7
{[%clk 0:01:52]} 40. Nf7 {[%clk 0:00:01.5]} 40... Rg3+ {[%clk 0:01:46.6]} 41.
Kh2 {[%clk 0:00:01.5]} 41... Rg2+ {[%clk 0:01:46.8]} 42. Kh1 {[%clk 0:00:01.7]}
42... Ne3 {[%clk 0:01:46.2]} 43. Ng5+ {[%clk 0:00:01]} 43... Rxg5 {[%clk
0:01:45.8]} 44. Rc5 {[%clk 0:00:01]} 44... Rxc5 {[%clk 0:01:45.5]} 45. bxc5
{[%clk 0:00:01.9]} 45... Nfd5 {[%clk 0:01:45.9]} 46. c6 {[%clk 0:00:02]} 46...
Nc7 {[%clk 0:01:46.4]} 47. Kh2 {[%clk 0:00:02.1]} 47... Ned5 {[%clk 0:01:47.3]}
48. Kh3 {[%clk 0:00:03]} 48... g5 {[%clk 0:01:48.2]} 49. Kg3 {[%clk 0:00:02.8]}
49... Kg6 {[%clk 0:01:49.1]} 50. Kh2 {[%clk 0:00:03.7]} 50... Kf5 {[%clk
0:01:50]} 51. Kg1 {[%clk 0:00:04.5]} 51... a5 {[%clk 0:01:50.9]} 52. Kg2 {[%clk
0:00:05.4]} 52... Ke4 {[%clk 0:01:51.6]} 53. Kf2 {[%clk 0:00:06.3]} 53... g4
{[%clk 0:01:52.2]} 54. Ke2 {[%clk 0:00:07.2]} 54... h4 {[%clk 0:01:52.8]} 55.
Kd2 {[%clk 0:00:08.1]} 55... Kxd4 {[%clk 0:01:53.1]} 56. Ke2 {[%clk 0:00:08.4]}
56... Kc5 {[%clk 0:01:54]} 57. Kf2 {[%clk 0:00:09]} 57... Kxc6 {[%clk
0:01:54.9]} 58. Kg2 {[%clk 0:00:09.8]} 58... Kc5 {[%clk 0:01:55.7]} 59. Kf2
{[%clk 0:00:10.3]} 59... Kd4 {[%clk 0:01:56.6]} 60. Kg2 {[%clk 0:00:09.5]} 60...
Ne6 {[%clk 0:01:57.5]} 0-1

[Event "Late-Titled-Tuesday-Blitz-May-28-2024"]
[Site "Chess.com"]
[Date "2024.05.28"]
[Round "7"]
[White "JaackCamel"]
[Black "boguszp"]
[Result "1-0"]
[WhiteElo "2239"]
[BlackElo "2022"]
[TimeControl "180+1"]
[EndTime "15:16:39 PDT"]
[Termination "JaackCamel won on time"]

1. d4 {[%clk 0:03:00.9]} 1... d5 {[%clk 0:02:58.9]} 2. c4 {[%clk 0:03:00.4]}
2... c6 {[%clk 0:02:59.4]} 3. cxd5 {[%clk 0:02:59.9]} 3... cxd5 {[%clk
0:02:58.5]} 4. Bf4 {[%clk 0:02:59.5]} 4... Nc6 {[%clk 0:02:59]} 5. e3 {[%clk
0:02:59.3]} 5... a6 {[%clk 0:02:59.3]} 6. Nc3 {[%clk 0:02:58.8]} 6... Nf6 {[%clk
0:02:59.8]} 7. Bd3 {[%clk 0:02:58.4]} 7... e6 {[%clk 0:02:59.4]} 8. h3 {[%clk
0:02:58]} 8... Bd6 {[%clk 0:02:59.3]} 9. Bxd6 {[%clk 0:02:57.7]} 9... Qxd6
{[%clk 0:02:59.2]} 10. f4 {[%clk 0:02:57.9]} 10... O-O {[%clk 0:02:57.4]} 11.
Nf3 {[%clk 0:02:57.7]} 11... Ne4 {[%clk 0:02:50.3]} 12. Nxe4 {[%clk 0:02:52]}
12... dxe4 {[%clk 0:02:41]} 13. Bxe4 {[%clk 0:02:51.8]} 13... Qb4+ {[%clk
0:02:33.4]} 14. Qd2 {[%clk 0:02:51.2]} 14... Qb5 {[%clk 0:02:26.7]} 15. Bd3
{[%clk 0:02:46.7]} 15... Qb6 {[%clk 0:02:18.4]} 16. O-O {[%clk 0:02:46]} 16...
Nb4 {[%clk 0:02:12.8]} 17. Be4 {[%clk 0:02:40.9]} 17... Bd7 {[%clk 0:01:49.6]}
18. a3 {[%clk 0:02:40.1]} 18... Nd5 {[%clk 0:01:41.7]} 19. Ne5 {[%clk 0:02:32]}
19... Bb5 {[%clk 0:01:39.7]} 20. Rfc1 {[%clk 0:02:29.7]} 20... Rac8 {[%clk
0:01:36.9]} 21. Bd3 {[%clk 0:02:26.1]} 21... Bxd3 {[%clk 0:01:31.4]} 22. Qxd3
{[%clk 0:02:24.6]} 22... Qxb2 {[%clk 0:01:17.6]} 23. Rcb1 {[%clk 0:02:10.8]}
23... Qc3 {[%clk 0:01:06.8]} 24. Qxc3 {[%clk 0:01:52.1]} 24... Rxc3 {[%clk
0:01:01.5]} 25. Rxb7 {[%clk 0:01:44.6]} 25... Rxe3 {[%clk 0:00:57.5]} 26. Nd7
{[%clk 0:01:24.7]} 26... Rd8 {[%clk 0:00:55.7]} 27. Kf2 {[%clk 0:01:21.1]} 27...
Rd3 {[%clk 0:00:50]} 28. Ne5 {[%clk 0:01:14.6]} 28... Rxd4 {[%clk 0:00:28.4]}
29. Nc6 {[%clk 0:01:14.2]} 29... Rxf4+ {[%clk 0:00:28.3]} 30. Kg3 {[%clk
0:01:14.1]} 30... Rc8 {[%clk 0:00:27.1]} 31. Ne7+ {[%clk 0:01:11.8]} 31... Nxe7
{[%clk 0:00:20.6]} 32. Kxf4 {[%clk 0:01:11.6]} 32... Nd5+ {[%clk 0:00:18.2]} 33.
Ke5 {[%clk 0:01:10.2]} 33... g6 {[%clk 0:00:09.7]} 34. Rab1 {[%clk 0:01:07]}
34... Kg7 {[%clk 0:00:07.4]} 35. Ra7 {[%clk 0:01:04.8]} 1-0

[Event "Late-Titled-Tuesday-Blitz-May-28-2024"]
[Site "Chess.com"]
[Date "2024.05.28"]
[Round "7"]
[White "Beaterawn"]
[Black "atalz0"]
[Result "0-1"]
[WhiteElo "2365"]
[BlackElo "2499"]
[TimeControl "180+1"]
[EndTime "15:16:42 PDT"]
[Termination "atalz0 won on time"]

1. e4 {[%clk 0:03:00.9]} 1... d5 {[%clk 0:03:00.1]} 2. exd5 {[%clk 0:03:00.7]}
2... Nf6 {[%clk 0:03:00.4]} 3. d4 {[%clk 0:03:00.7]} 3... Nxd5 {[%clk
0:03:00.5]} 4. Nf3 {[%clk 0:03:00.7]} 4... Bg4 {[%clk 0:03:00.2]} 5. Be2 {[%clk
0:02:59.3]} 5... Nc6 {[%clk 0:03:00.3]} 6. h3 {[%clk 0:02:52.7]} 6... Bh5 {[%clk
0:02:59.7]} 7. c4 {[%clk 0:02:49.2]} 7... Nb6 {[%clk 0:02:59.8]} 8. Be3 {[%clk
0:02:49.3]} 8... e6 {[%clk 0:02:52]} 9. Nc3 {[%clk 0:02:46.8]} 9... Bxf3 {[%clk
0:02:50.5]} 10. Bxf3 {[%clk 0:02:46.7]} 10... Nxc4 {[%clk 0:02:49.8]} 11. Qa4
{[%clk 0:02:31.6]} 11... Nb6 {[%clk 0:02:49.4]} 12. Bxc6+ {[%clk 0:02:31.3]}
12... bxc6 {[%clk 0:02:50.3]} 13. Qxc6+ {[%clk 0:02:31.8]} 13... Qd7 {[%clk
0:02:51.2]} 14. Qxd7+ {[%clk 0:02:30]} 14... Kxd7 {[%clk 0:02:52.1]} 15. Rc1
{[%clk 0:02:27.8]} 15... Bd6 {[%clk 0:02:52]} 16. Nb5 {[%clk 0:02:25.1]} 16...
Nd5 {[%clk 0:02:50]} 17. b3 {[%clk 0:02:21.4]} 17... Rhb8 {[%clk 0:02:47.3]} 18.
Nxd6 {[%clk 0:02:18.7]} 18... cxd6 {[%clk 0:02:48.2]} 19. Bd2 {[%clk 0:01:59.8]}
19... a5 {[%clk 0:02:46.9]} 20. Ke2 {[%clk 0:01:55.7]} 20... a4 {[%clk 0:02:46]}
21. bxa4 {[%clk 0:01:35.2]} 21... Rxa4 {[%clk 0:02:46.9]} 22. Rc2 {[%clk
0:01:35.4]} 22... Rxd4 {[%clk 0:02:41.9]} 23. Rhc1 {[%clk 0:01:35.5]} 23... Re4+
{[%clk 0:02:29.1]} 24. Kf3 {[%clk 0:01:29.7]} 24... Ra4 {[%clk 0:02:28.7]} 25.
Be3 {[%clk 0:01:25.1]} 25... Rba8 {[%clk 0:02:24.4]} 26. Rb1 {[%clk 0:01:22.5]}
26... Rb4 {[%clk 0:01:59.6]} 27. Rxb4 {[%clk 0:01:06.6]} 27... Nxb4 {[%clk
0:02:00.5]} 28. Rb2 {[%clk 0:01:06.9]} 28... Nxa2 {[%clk 0:01:50.8]} 29. Rb7+
{[%clk 0:01:06.2]} 29... Ke8 {[%clk 0:01:51]} 30. Bf4 {[%clk 0:00:17.9]} 30...
Ra6 {[%clk 0:01:35.2]} 31. Bg5 {[%clk 0:00:15.7]} 31... f6 {[%clk 0:01:26.3]}
32. Be3 {[%clk 0:00:16]} 32... Kf8 {[%clk 0:01:24]} 33. Bd2 {[%clk 0:00:13]}
33... d5 {[%clk 0:01:18.9]} 34. Rb3 {[%clk 0:00:12.7]} 34... Kf7 {[%clk
0:01:17.7]} 35. Ke2 {[%clk 0:00:12.8]} 35... e5 {[%clk 0:01:16.8]} 36. Kd1
{[%clk 0:00:12.9]} 36... d4 {[%clk 0:01:15.7]} 0-1

[Event "Late-Titled-Tuesday-Blitz-May-28-2024"]
[Site "Chess.com"]
[Date "2024.05.28"]
[Round "7"]
[White "GoValya"]
[Black "th3d4rkness"]
[Result "0-1"]
[WhiteElo "2214"]
[BlackElo "2172"]
[TimeControl "180+1"]
[EndTime "15:16:43 PDT"]
[Termination "th3d4rkness won on time"]

1. Nf3 {[%clk 0:03:00.9]} 1... Nf6 {[%clk 0:02:59.4]} 2. g3 {[%clk 0:03:01]}
2... g6 {[%clk 0:02:59.9]} 3. Bg2 {[%clk 0:03:01.2]} 3... Bg7 {[%clk 0:03:00.6]}
4. O-O {[%clk 0:03:01.7]} 4... O-O {[%clk 0:03:01.3]} 5. d4 {[%clk 0:03:02.2]}
5... d6 {[%clk 0:03:01.5]} 6. c4 {[%clk 0:03:02.2]} 6... Nc6 {[%clk 0:03:00.5]}
7. Nc3 {[%clk 0:03:02]} 7... Bf5 {[%clk 0:03:00.7]} 8. a3 {[%clk 0:02:58.3]}
8... Ne4 {[%clk 0:03:00.4]} 9. Nh4 {[%clk 0:02:51]} 9... Nxc3 {[%clk 0:02:59.5]}
10. bxc3 {[%clk 0:02:51.3]} 10... Bd7 {[%clk 0:02:56.7]} 11. Rb1 {[%clk
0:02:43.5]} 11... Rb8 {[%clk 0:02:45.9]} 12. Qd3 {[%clk 0:02:17.1]} 12... e5
{[%clk 0:02:42.5]} 13. e4 {[%clk 0:02:12.6]} 13... exd4 {[%clk 0:02:38.1]} 14.
cxd4 {[%clk 0:02:12.8]} 14... Nxd4 {[%clk 0:02:37.4]} 15. Be3 {[%clk 0:02:09.6]}
15... Nc6 {[%clk 0:02:32.6]} 16. f4 {[%clk 0:02:06.1]} 16... b6 {[%clk
0:02:29.7]} 17. Nf3 {[%clk 0:01:58.7]} 17... Na5 {[%clk 0:02:27.1]} 18. Nd4
{[%clk 0:01:53.5]} 18... Nb7 {[%clk 0:02:21.7]} 19. f5 {[%clk 0:01:43.4]} 19...
Nc5 {[%clk 0:02:19.4]} 20. Qc2 {[%clk 0:01:41.7]} 20... Re8 {[%clk 0:02:15.5]}
21. h4 {[%clk 0:01:19]} 21... Ba4 {[%clk 0:02:14.4]} 22. Qf2 {[%clk 0:01:13.8]}
22... Nxe4 {[%clk 0:02:10.4]} 23. Bxe4 {[%clk 0:01:13.7]} 23... Rxe4 {[%clk
0:02:08.9]} 24. fxg6 {[%clk 0:01:14]} 24... fxg6 {[%clk 0:02:07]} 25. Qf7+
{[%clk 0:01:11.9]} 25... Kh8 {[%clk 0:02:07]} 26. Ne6 {[%clk 0:01:08.2]} 26...
Qg8 {[%clk 0:02:02.7]} 27. Qxg8+ {[%clk 0:00:31.8]} 27... Kxg8 {[%clk
0:01:59.9]} 28. Nxg7 {[%clk 0:00:22.9]} 28... Rxe3 {[%clk 0:01:55.5]} 29. Rbe1
{[%clk 0:00:12.4]} 29... Rxe1 {[%clk 0:01:55.2]} 30. Rxe1 {[%clk 0:00:13.3]}
30... Kxg7 {[%clk 0:01:54]} 31. Re7+ {[%clk 0:00:13.4]} 31... Kh6 {[%clk
0:01:51.7]} 32. Rxc7 {[%clk 0:00:13.6]} 32... a6 {[%clk 0:01:45.9]} 33. g4
{[%clk 0:00:12.7]} 33... g5 {[%clk 0:01:42.6]} 34. h5 {[%clk 0:00:11.5]} 34...
b5 {[%clk 0:01:39]} 35. Rd7 {[%clk 0:00:08.9]} 35... Rb6 {[%clk 0:01:37.2]} 36.
cxb5 {[%clk 0:00:07.8]} 36... Bxb5 {[%clk 0:01:36.4]} 37. Rf7 {[%clk 0:00:08]}
37... d5 {[%clk 0:01:33.8]} 38. Kg2 {[%clk 0:00:07.6]} 38... Rd6 {[%clk
0:01:31.7]} 39. Kf3 {[%clk 0:00:07.4]} 39... Rd7 {[%clk 0:01:31.5]} 40. Rf6+
{[%clk 0:00:07.1]} 40... Kg7 {[%clk 0:01:31.7]} 41. Rb6 {[%clk 0:00:06.8]} 41...
d4 {[%clk 0:01:30.3]} 42. h6+ {[%clk 0:00:06.2]} 42... Kf7 {[%clk 0:01:28.9]}
43. Rb8 {[%clk 0:00:06.5]} 43... d3 {[%clk 0:01:26.7]} 44. Rh8 {[%clk
0:00:06.4]} 44... Kg6 {[%clk 0:01:27.1]} 45. Rg8+ {[%clk 0:00:03.1]} 45... Kxh6
{[%clk 0:01:27]} 0-1

[Event "Late-Titled-Tuesday-Blitz-May-28-2024"]
[Site "Chess.com"]
[Date "2024.05.28"]
[Round "7"]
[White "CheckBits"]
[Black "maximnovik"]
[Result "0-1"]
[WhiteElo "2400"]
[BlackElo "2554"]
[TimeControl "180+1"]
[EndTime "15:16:46 PDT"]
[Termination "maximnovik won on time"]

1. e4 {[%clk 0:02:59.7]} 1... e5 {[%clk 0:02:58.9]} 2. Bc4 {[%clk 0:02:55.7]}
2... Nc6 {[%clk 0:02:58.8]} 3. d3 {[%clk 0:02:53.4]} 3... Bc5 {[%clk 0:02:57.5]}
4. Nf3 {[%clk 0:02:51.7]} 4... Nf6 {[%clk 0:02:56.9]} 5. O-O {[%clk 0:02:51.3]}
5... d6 {[%clk 0:02:56.7]} 6. c3 {[%clk 0:02:50.1]} 6... a6 {[%clk 0:02:56.1]}
7. a4 {[%clk 0:02:46.1]} 7... Ba7 {[%clk 0:02:55.9]} 8. Nbd2 {[%clk 0:02:43.6]}
8... O-O {[%clk 0:02:55.1]} 9. h3 {[%clk 0:02:43.5]} 9... Be6 {[%clk 0:02:51.3]}
10. Re1 {[%clk 0:02:42.9]} 10... h6 {[%clk 0:02:45.8]} 11. a5 {[%clk 0:02:40.4]}
11... Qd7 {[%clk 0:02:41.7]} 12. b4 {[%clk 0:02:39.8]} 12... d5 {[%clk
0:02:34.9]} 13. Bb3 {[%clk 0:02:24.9]} 13... d4 {[%clk 0:02:27.9]} 14. cxd4
{[%clk 0:02:12.9]} 14... Nxd4 {[%clk 0:02:19.8]} 15. Nxe5 {[%clk 0:02:03]} 15...
Qd6 {[%clk 0:02:09.4]} 16. Nec4 {[%clk 0:01:49]} 16... Qd7 {[%clk 0:01:48.6]}
17. Bb2 {[%clk 0:01:40.4]} 17... Rad8 {[%clk 0:01:38.6]} 18. Ba2 {[%clk
0:01:25.6]} 18... Bxh3 {[%clk 0:01:23.3]} 19. e5 {[%clk 0:00:35.1]} 19... Bg4
{[%clk 0:01:01.5]} 20. Qc1 {[%clk 0:00:20.5]} 20... Nh5 {[%clk 0:01:01]} 21. Ne4
{[%clk 0:00:12.4]} 21... Ne2+ {[%clk 0:00:55.7]} 22. Rxe2 {[%clk 0:00:12.1]}
22... Bxe2 {[%clk 0:00:56.1]} 23. Nc5 {[%clk 0:00:09.4]} 23... Bxc5 {[%clk
0:00:55.4]} 24. bxc5 {[%clk 0:00:09.7]} 24... Qxd3 {[%clk 0:00:55.1]} 25. e6
{[%clk 0:00:05.4]} 25... fxe6 {[%clk 0:00:54]} 26. Ne5 {[%clk 0:00:04.9]} 26...
Qd1+ {[%clk 0:00:52]} 27. Kh2 {[%clk 0:00:01]} 27... Rf6 {[%clk 0:00:44.8]} 0-1

[Event "Late-Titled-Tuesday-Blitz-May-28-2024"]
[Site "Chess.com"]
[Date "2024.05.28"]
[Round "7"]
[White "Hakiki_satranc"]
[Black "simaopdias"]
[Result "1-0"]
[WhiteElo "2408"]
[BlackElo "2252"]
[TimeControl "180+1"]
[EndTime "15:16:54 PDT"]
[Termination "Hakiki_satranc won by resignation"]

1. e4 {[%clk 0:03:00.9]} 1... c5 {[%clk 0:02:59.5]} 2. Nf3 {[%clk 0:03:00.8]}
2... g6 {[%clk 0:03:00.4]} 3. c3 {[%clk 0:03:00]} 3... Bg7 {[%clk 0:03:00.7]} 4.
Bc4 {[%clk 0:03:00.4]} 4... e6 {[%clk 0:02:43.7]} 5. O-O {[%clk 0:02:59.8]} 5...
Ne7 {[%clk 0:02:43]} 6. d4 {[%clk 0:02:52.3]} 6... cxd4 {[%clk 0:02:41.5]} 7.
cxd4 {[%clk 0:02:53.2]} 7... d5 {[%clk 0:02:41.8]} 8. Bb5+ {[%clk 0:02:52.6]}
8... Bd7 {[%clk 0:02:41.2]} 9. Bxd7+ {[%clk 0:02:48.3]} 9... Qxd7 {[%clk
0:02:41.1]} 10. Nc3 {[%clk 0:02:46.4]} 10... O-O {[%clk 0:02:39.6]} 11. e5
{[%clk 0:02:41.5]} 11... Nbc6 {[%clk 0:02:39.1]} 12. Bg5 {[%clk 0:02:22.6]}
12... f6 {[%clk 0:02:38]} 13. exf6 {[%clk 0:02:22]} 13... Bxf6 {[%clk
0:02:38.9]} 14. Bh6 {[%clk 0:02:14.7]} 14... Rf7 {[%clk 0:02:33.3]} 15. Re1
{[%clk 0:02:11.8]} 15... Nf5 {[%clk 0:02:29.6]} 16. Be3 {[%clk 0:02:05.5]} 16...
Nxe3 {[%clk 0:02:29]} 17. Rxe3 {[%clk 0:02:01.4]} 17... Raf8 {[%clk 0:02:29.2]}
18. Qd3 {[%clk 0:01:46.7]} 18... Bg7 {[%clk 0:02:28.7]} 19. Rae1 {[%clk
0:01:42.2]} 19... Rxf3 {[%clk 0:02:24.6]} 20. Rxf3 {[%clk 0:01:41]} 20... Nxd4
{[%clk 0:02:24]} 21. Rxf8+ {[%clk 0:01:40.4]} 21... Kxf8 {[%clk 0:02:24.2]} 22.
h4 {[%clk 0:01:33.6]} 22... Kg8 {[%clk 0:02:20]} 23. h5 {[%clk 0:01:32.8]} 23...
gxh5 {[%clk 0:02:19.5]} 24. Qh3 {[%clk 0:01:31]} 24... Qf7 {[%clk 0:02:07.7]}
25. Ne2 {[%clk 0:01:24.5]} 25... Nf5 {[%clk 0:01:59.1]} 26. Nf4 {[%clk
0:01:21.7]} 26... e5 {[%clk 0:01:55]} 27. Nxd5 {[%clk 0:01:13.7]} 27... Qxd5
{[%clk 0:01:49.2]} 28. Qxf5 {[%clk 0:01:13.2]} 28... Qxa2 {[%clk 0:01:47]} 29.
Qc8+ {[%clk 0:01:10.8]} 29... Kf7 {[%clk 0:01:40.7]} 30. Qxb7+ {[%clk 0:01:10]}
30... Kg6 {[%clk 0:01:40.8]} 31. Qc6+ {[%clk 0:01:04]} 31... Kf7 {[%clk
0:01:39.1]} 32. Rd1 {[%clk 0:01:00.6]} 32... Bf6 {[%clk 0:01:10.7]} 33. Qd5+
{[%clk 0:00:45.7]} 33... Qxd5 {[%clk 0:01:10.2]} 34. Rxd5 {[%clk 0:00:46.6]}
34... Ke6 {[%clk 0:01:03.7]} 35. Ra5 {[%clk 0:00:45]} 35... e4 {[%clk
0:01:03.1]} 36. Rxa7 {[%clk 0:00:42.5]} 36... Bxb2 {[%clk 0:01:01.7]} 37. Rxh7
{[%clk 0:00:42.9]} 37... Kf6 {[%clk 0:00:58.8]} 38. Rxh5 {[%clk 0:00:42.8]}
38... Bc1 {[%clk 0:00:58.8]} 39. Rh3 {[%clk 0:00:40.2]} 39... Kf5 {[%clk
0:00:58.3]} 40. Kf1 {[%clk 0:00:40.7]} 40... Kf4 {[%clk 0:00:56.5]} 41. Ke2
{[%clk 0:00:41.2]} 41... Bb2 {[%clk 0:00:56]} 42. Rb3 {[%clk 0:00:40.7]} 42...
Bd4 {[%clk 0:00:55.8]} 43. Rb4 {[%clk 0:00:40.4]} 43... Bc3 {[%clk 0:00:55]} 44.
Rc4 {[%clk 0:00:40.3]} 44... Be5 {[%clk 0:00:52.8]} 45. f3 {[%clk 0:00:40.4]}
45... Kg3 {[%clk 0:00:52.7]} 46. Rxe4 {[%clk 0:00:39.5]} 46... Bb2 {[%clk
0:00:52.5]} 47. Rg4+ {[%clk 0:00:39.3]} 1-0